Cogmind - Beta 15 @@@ ROGUE MODE // 2025.05.11 @ 13:45:48 Player: Minty Result: Destroyed by YI-UF0 with YI-UF0's Doublenader Performance ------------- Evolutions (0) 0 Regions Visited (2) 400 Robots Destroyed (10) 50 Value Destroyed (214) 214 Prototype IDs (3) 60 Alien Tech Used (0) 0 Bonus (-113) -113 TOTAL SCORE: 611 Bonus ------- Friendly Fire -113 Cogmind --------- Core Integrity 0/250 Matter 275/300 Energy 103/265 System Corruption 3% Temperature Cool (24) Movement Core (350) Ox6 Location -10/Mines Parts ------- > --- POWER (1) -------- Improved Ion Engine > --- PROPULSION (2) --- (None) > --- UTILITY (2) ------ Medium Storage Unit Improved Targeting Computer > --- WEAPON (2) ------- Assault Rifle > --- INVENTORY (10) --- Reinforced Ion Engine Reinforced Ion Engine Improved Targeting Computer Improved Targeting Computer Improved Targeting Computer Grenade Launcher Grenade Launcher Peak State ------------ > --- POWER ------------ Reinforced Ion Engine > --- PROPULSION ------- Aluminum Leg Aluminum Leg > --- UTILITY ---------- Small Storage Unit Hacking Suite > --- WEAPON ----------- Improved EM Shotgun Improved EM Shotgun > --- INVENTORY -------- Light Ion Engine Improved Targeting Computer Improved Targeting Computer Improved Targeting Computer Improved Targeting Computer ECM Suite Assault Rifle Grenade Launcher [Rating: 15] Favorites ----------- Power Reinforced Ion Engine Engine Reinforced Ion Engine Propulsion Aluminum Leg Leg Aluminum Leg Utility Hacking Suite Device Sensor Array Storage Small Storage Unit Processor Improved Targeting Computer Hackware Hacking Suite Weapon Improved EM Shotgun Energy Gun Improved EM Shotgun Ballistic Gun Assault Rifle Build | -11 -10 -10 ------- Run | Yrd Mat Min Slots Evolved . | . . . Power . | . . . Propulsion . | . . . Utility . | . . . Weapon . | . . . Parts Attached 11 | . 8 3 Power 2 | . 1 1 Engine 2 | . 1 1 Core . | . . . Reactor . | . . . Propulsion . | . . . Treads . | . . . Leg . | . . . Wheel . | . . . Hover . | . . . Flight . | . . . Utility 4 | . 3 1 Device 1 | . 1 . Storage 1 | . 1 . Processor 1 | . . 1 Hackware 1 | . 1 . Protection . | . . . Artifact . | . . . Weapon 5 | . 4 1 Energy Gun 4 | . 4 . Energy Cannon . | . . . Ballistic Gun 1 | . . 1 Ballistic Cannon . | . . . Launcher . | . . . Special Weapon . | . . . Impact Weapon . | . . . Slashing Weapon . | . . . Piercing Weapon . | . . . Special Melee Weapon . | . . . Unidentified Prototypes 1 | . 1 . Parts Lost 5 | . . 5 Power 1 | . . 1 Propulsion 2 | . . 2 Utility . | . . . Weapon 2 | . . 2 Highest Loss Streak 5 | . . 5 To Critical Strikes . | . . . Average Backups 8 | . 7 8 Power 1 | . 1 2 Propulsion . | . 1 . Utility 3 | . 2 3 Weapon 2 | . 1 2 Tool/Special . | . . . Unused Backups 23 | . 14 9 Power 5 | . 3 2 Propulsion 8 | . 6 2 Utility 5 | . 2 3 Weapon 5 | . 3 2 Tool/Special . | . . . Average Slot Usage (%) 98 | . 98 99 Engine 14 | . 14 14 Leg 28 | . 28 28 Device 1 | . 1 . Storage 14 | . 14 14 Hackware 12 | . 11 14 Energy Gun 24 | . 23 26 Ballistic Gun 3 | . 4 . Peak Build Rating 15 | . 15 15 Average Rating 13 | . 12 14 On Entrance 9 | 6 6 15 Naked Turns . | . . . Heaviest Build 26 | 12 26 26 Greatest Support 20 | 20 20 20 Greatest Overweight (x) 1 | . 1 1 Average Overweight (x) . | . . 1 Largest Inventory Capacity 10 | . 10 10 Average Capacity 8 | . 8 10 Most Carried 10 | . 8 10 Average Carried 8 | . 7 8 Final Capacity 10 | 8 10 10 Final Carried 8 | 6 8 7 Class Distribution -------------------- 100% | Mutant Dominant Class ---------------- Mutant | -10/Materials Mutant | -10/Mines Resources | -11 -10 -10 ----------- Run | Yrd Mat Min Matter Collected 305 | 200 68 37 Remotely . | . . . Salvage Created 303 | . 243 60 Parts 21 | . 18 3 Haulers Intercepted 1 | . 1 . Recyclers Shooed . | . . . Parts Field Recycled . | . . . Retrieved Matter . | . . . Parts Self-Destructed . | . . . Prevented . | . . . Kills | -11 -10 -10 ------- Run | Yrd Mat Min Combat Hostiles Destroyed 4 | . 3 1 Guns 3 | . 2 1 AOE 1 | . 1 . Classes Destroyed 5 | . 4 1 Worker 3 | . 3 . Hauler 1 | . 1 . Operator 2 | . 2 . Grunt 3 | . 3 . Sentry 1 | . . 1 Best Kill Streak 2 | . 2 1 Combat Bots Only 2 | . 2 1 Max Kills in Single Turn 1 | . 1 1 Gunslinging . | . . . Exploded 1 | . 1 . Melee . | . . . Uniques/NPCs Destroyed . | . . . Combat | -11 -10 -10 -------- Run | Yrd Mat Min Hostile Shots Fired 49 | . 31 18 Missed 12 | . 10 2 Hits 37 | . 21 16 Projectile 37 | . 21 16 AOE 18 | . . 18 Damage Taken 827 | . 275 552 Core 252 | . 88 164 Absorbed by Shields . | . . . Core Remaining (%) 100 | 100 . . Volleys Fired 27 | . 18 9 Largest 2 | . 2 2 Hottest 90 | . 90 90 Shots Fired 54 | . 37 17 Gun 54 | . 37 17 Cannon . | . . . Launcher . | . . . Special . | . . . Kinetic 8 | . 3 5 Thermal . | . . . Explosive . | . . . Electromagnetic 46 | . 34 12 Robot Hit Streak 9 | . 7 9 Robot Miss Streak 5 | . 5 3 Penetration Max . | . . . Secondary Targets . | . . . Shots Hit Robots 40 | . 26 14 Core Hits 16 | . 14 2 Critical Kills . | . . . Critical Parts Destroyed . | . . . Critical Strikes . | . . . Melee Attacks . | . . . Impact . | . . . Slashing . | . . . Piercing . | . . . Sneak Attacks . | . . . Combat Hostiles . | . . . Follow-up Attacks . | . . . Damage Inflicted 1018 | . 791 227 Guns 660 | . 433 227 Cannons . | . . . Explosions 358 | . 358 . Melee . | . . . Ramming . | . . . Kinetic 80 | . 28 52 Thermal 358 | . 358 . Explosive . | . . . Electromagnetic 580 | . 405 175 Impact . | . . . Slashing . | . . . Piercing . | . . . Highest Corruption 3 | . 3 3 Average Corruption 2 | . 2 3 Corruption Purged . | . . . Corruption Blocked . | . . . Effects 12 | . 9 3 Message Errors 3 | . 3 . Matter Fused 3 | . 2 1 Heat Flow Errors 2 | . 2 . Energy Discharges 2 | . 1 1 Misfires 1 | . 1 . Alerts 1 | . . 1 Overload Shots . | . . . Overflow Damage 82 | . 82 . Projectiles . | . . . Explosions 82 | . 82 . Melee . | . . . Knockbacks . | . . . Impact . | . . . Kinetic . | . . . Secondary . | . . . Self-Inflicted Damage 30 | . 30 . Shots 1 | . 1 . Rammed . | . . . Targets Rammed . | . . . Kicked . | . . . Crushed . | . . . Highest Temperature 322 | . 322 126 Average Temperature 106 | . 122 54 Received Heat Transfer 132 | . 132 . Siege Activations . | . . . Martial Activations . | . . . Shielding Activations . | . . . Robots Disrupted 1 | . 1 . Combat Hostiles 1 | . 1 . Robots Corrupted . | . . . Combat Hostiles . | . . . Parts Fried 2 | . 2 . Impact Corruptions . | . . . Robots Melted . | . . . Combat Hostiles . | . . . Parts Melted . | . . . Heat Transferred 200 | . 200 . Parts Sabotaged . | . . . Parts Stolen . | . . . Parts Stripped . | . . . Power Chain Reactions 3 | . 3 . Alert | -11 -10 -10 ------- Run | Yrd Mat Min Maximum Alert Level . | . . . Low Security (%) 100 | . 100 100 Level 1 . | . . . Level 2 . | . . . Level 3 . | . . . Level 4 . | . . . Level 5 . | . . . High Security . | . . . Max Security . | . . . Peak Influence 93 | . 93 20 Initial 7 | . . 7 Average 27 | . 35 2 Influence Increases 186 | . 166 20 Destroy 0b10 Robot/C 80 | . 60 20 Destroy 0b10 Robot/NC 30 | . 30 . Destroy Leader 12 | . 12 . Successful Hack 5 | . 5 . Disable Machine 45 | . 45 . Destroy Structure 14 | . 14 . Influence Decreases 186 | . 147 39 Entered New Map 12 | . . 12 Time Decay 174 | . 147 27 Squads Dispatched 3 | . 3 . Investigation . | . . . Extermination . | . . . Reinforcement 3 | . 3 . Assault . | . . . Garrison . | . . . Intercept . | . . . Searches Triggered . | . . . Construction Impeded . | . . . Haulers Reinforced . | . . . Active Scanning Responses . | . . . Cargo Convoy Interrupts . | . . . Stealth | -11 -10 -10 --------- Run | Yrd Mat Min Distress Signals 3 | . 3 . Communications Jammed . | . . . Distress Signals . | . . . Times Spotted 15 | . 12 3 Peak Tracking Total 6 | . 6 2 Tactical Retreats . | . . . Traps | -11 -10 -10 ------- Run | Yrd Mat Min Traps Triggered 1 | . 1 . Indirectly . | . . . Trap Hack Attempts . | . . . Triggered . | . . . Disarmed . | . . . Reprogrammed . | . . . Reused . | . . . Traps Extracted . | . . . Installed . | . . . Triggered . | . . . Objects Rigged 6 | . 6 . Exploded 1 | . 1 . Machines | -11 -10 -10 ---------- Run | Yrd Mat Min Machines Disabled 4 | . 3 1 Max in Single Turn 3 | . 3 1 Machines Repaired . | . . . Machines Dismantled . | . . . Machines Sabotaged . | . . . Overloaded Fab Kills . | . . . Hacking | -11 -10 -10 --------- Run | Yrd Mat Min Machines Accessed 1 | . 1 . Terminals 1 | . 1 . Fabricators . | . . . Repair Stations . | . . . Recycling Units . | . . . Scanalyzers . | . . . Garrison Access . | . . . Total Hacks 6 | . 6 . Successful 4 | . 4 . Failed 2 | . 2 . Catastrophic . | . . . Database Lockouts . | . . . Manual 3 | . 3 . Terminals 6 | . 6 . Fabricators . | . . . Repair Stations . | . . . Recycling Units . | . . . Scanalyzers . | . . . Garrison Access . | . . . Terminal Hacks 3 | . 3 . Robot Analysis 1 | . 1 . Prototype ID Bank 1 | . 1 . Registered Components 1 | . 1 . Fabricator Hacks . | . . . Repair Station Hacks . | . . . Recycling Unit Hacks . | . . . Scanalyzer . | . . . Garrison Access Hacks . | . . . Unauthorized Hacks 1 | . 1 . Terminals 1 | . 1 . Detonate 1 | . 1 . Fabricators . | . . . Repair Stations . | . . . Recycling Units . | . . . Scanalyzers . | . . . Garrison Access . | . . . Data Cores Recovered . | . . . Used . | . . . Hacking Detections 1 | . 1 . Full Trace Events . | . . . Feedback Events . | . . . Feedback Blocked . | . . . Robot Schematics Acquired . | . . . Robots Built . | . . . Authchips . | . . . Time . | . . . Total Robot Build Rating . | . . . Part Schematics Acquired . | . . . Parts Built . | . . . Authchips . | . . . Time . | . . . Total Part Build Rating . | . . . Parts Repaired . | . . . Time . | . . . Parts Recycled . | . . . Recycled Matter . | . . . Retrieved Matter . | . . . Retrieved Components . | . . . Parts Scanalyzed . | . . . Part Schematics Acquired . | . . . Parts Damaged . | . . . Bothacking | -11 -10 -10 ------------ Run | Yrd Mat Min Used RIF Installer . | . . . Robots Hacked . | . . . Non-combat . | . . . Combat . | . . . Robot Hacks Applied . | . . . Relay Couplers Released . | . . . Fabnet Peak Effective % . | . . . Robots Rewired . | . . . Allies Hacked . | . . . Hacks Repelled . | . . . Allies | -11 -10 -10 -------- Run | Yrd Mat Min Total Allies . | . . . Largest Group . | . . . Highest-Rated Group . | . . . Highest-Rated Ally . | . . . Total Orders . | . . . Ally Attacks . | . . . Total Damage . | . . . Kills . | . . . Allies Corrupted . | . . . Allies Melted . | . . . Intel | -11 -10 -10 ------- Run | Yrd Mat Min Active Infowar (turns) 56 | . 56 . Sensors 56 | . 56 . Robot Analysis Total 1 | . 1 . Derelict Logs Recovered . | . . . Drone Launches . | . . . Drone Recoveries . | . . . Exploration | -11 -10 -10 ------------- Run | Yrd Mat Min Turns Passed 576 | . 434 142 Spaces Moved 283 | 1 224 58 Core . | . . . Treads . | . . . Legs 283 | 1 224 58 Wheels . | . . . Hover . | . . . Flight . | . . . Fastest Speed 120 | 120 120 190 Average Speed 166 | 120 160 190 Slowest Speed 190 | 120 190 190 Overloaded Moves . | . . . Propulsion Burnouts . | . . . Robots Hopped . | . . . Potential Cave-ins . | . . . Cave-ins Triggered . | . . . Exploration Rate (%) 18 | 1 40 14 Regions Visited 2 Branch Regions 1 Pre-discovered Areas . | . . . Known Exits Taken . | . . . Unknown Exits Taken 2 | 1 1 . Scrap Searched 1 | . . 1 Spaces Dug . | . . . Terrain Destroyed 11 | . 11 . Melee . | . . . Projectile . | . . . AOE 11 | . 11 . Terrain Rammed . | . . . Walls Destroyed . | . . . Machines Disabled . | . . . Actions | -11 -10 -10 --------- Run | Yrd Mat Min Total 341 | . 268 73 Wait 2 | . 1 1 Move 281 | . 223 58 Hop . | . . . Pick Up 10 | . 8 2 Fast Attach 2 | . 2 . Attach 2 | . . 2 Detach . | . . . Swap 7 | . 6 1 Drop 10 | . 10 . Fire 27 | . 18 9 Melee . | . . . Ram . | . . . Kick . | . . . Crush . | . . . Escape Stasis . | . . . Rewire . | . . . Trap . | . . . Miscellaneous . | . . . Route ------- -11/Scrapyard -10/Materials -10/Mines History --------- Turn | Location | Event 1 | -11/Scrapyard | Discovered new exit (range 0) 1 | -11/Scrapyard | Entered Materials 304 | -10/Materials | Build established: Mutant 407 | -10/Materials | Discovered new exit (range 16) 435 | -10/Materials | Entered Mines 484 | -10/Mines | Joined a pair of Derelicts in attacking an 0b10 outpost 553 | -10/Mines | YI-UF0 nonchalantly dropped a Grenade Launcher on the ground 570 | -10/Mines | Core integrity fell below 50% 576 | -10/Mines | Core integrity fell below 20% 577 | -10/Mines | Destroyed by YI-UF0 with YI-UF0's Doublenader Last Messages --------------- 00514_ ZR-JMZ(g): "By picking off the easy targets here, we can draw a trickle of reinforcements and keep pressure off our more trafficked cave areas." 00528_ Acquired Imp. Ion Engine. 00553_ YI-UF0 nonchalantly drops a Grenade Launcher on the ground. 00557_ YI-UF0 mumbles something. 00559_ Imp. EM Shotgun destroyed. 00560_ System corrupted: Energy discharge (-72). 00560_ YI-UF0: "BOOM TO YOU TOO!" 00561_ YI-UF0: "KAPOW!" 00561_ ZR-JMZ(g) destroyed. 00563_ Core Extractor disabled. 00564_ The unstable cave ceiling collapses. 00571_ Discarded Hacking Suite. 00573_ Aluminum Leg destroyed. 00573_ Rnf. Ion Engine destroyed. 00574_ The unstable cave ceiling collapses. 00575_ Aluminum Leg destroyed. 00575_ Imp. EM Shotgun destroyed. 00576_ The unstable cave ceiling collapses. Map ----- +----------------------------------------------------+ | ????????#*#### ##????????????????????? | | ????????# #???###?????????????????????? | | ????????# #######?????????????????????? | | ????????# #?????????????????????? | | ???????######## #?????????????????????? | | ??????## !"### #?????????????????????? | | ??????#" ![ "## #?????????????????????? | | ??????# =! ## #?????????????????????? | | ??????##!%*%### #?????????????????????? | | ??????###++## #?????????????????????? | | ??????# #?????????????????????? | | ??????# #?????????????????????? | | ??????# ##?????????????????????? | | ??????# #??????????????????????? | | ??????## ## ##??????????????????????? | | ???????# ?## ######???????????????????? | | ???????# ??#g# ##??????????????????? | | ???# ## ### # #??????????????????? | | ??# #??????????????????? | | ??# #??????????????????? | | ???# #### = #??????????????????? | | ???### #?### #??????????????????? | | ?????###?## #???????????????????? | | ?????????# g ##??????????????????? | | ?????????# #??????????????????? | | ?????????# @ #??????????????????? | | ?????????# ##??????????????????? | | ?????????# #?????????????????? | | ?????????# # " #????????????????? | | ?????????## """ #????????????????? | | ??????????# "" #???????????????? | | ??????????#### ??????????????? | | ?????????????## ### ###?????????????? | | ???????????????###???##???????????????? | | ??????????????????????????????????????? | | ??????????????????????????????????????? | | ??????????????????????????????????????? | | ??????????????????????????????????????? | | ??????????????????????????????????????? | | | | | | | | | | | | | | | | | | | | | | | +----------------------------------------------------+ Best States ------------- Heat Dissipation 25 Energy Generation 12 Energy Capacity 265 Matter Stores 300 Matter Capacity 300 Sight Range 16 Robot Scan Range 14 Terrain Scan Density 10 Evasion (%) 55 Offensive Hacking 10 Item Schematics ----------------- None Robot Schematics ------------------ None Fabricated ------------ Nothing Repaired ---------- Nothing Alien Tech Used ----------------- None Achievements -------------- None Challenges ------------ None Game ------ Seed SigixScrapMembrane Manual? 0 Play Time 00:04:04 Cumulative 1032.8 hours Start 2025.05.11 @ 13:42:47 End 2025.05.11 @ 13:45:48 Sessions 1 Manual Loads 0 Difficulty Rogue Special Mode None Game No. 1271 Rogue 989 Adventurer 124 Explorer 158 Win Type - Total 44 Types 31/0/8/3/1/0/0/1/0/0 Lore% 91 Gallery% 85 Achievement% 79 Wizard Run 0 Options --------- Layout 0 ASCII 0 Keyboard 1 Movement Numpad Keybinds 0 Fullscreen 2 Font 18/X11 Map View 76x50 Zoom Use 0% Tactical HUD 1 Map Filters NONE Filters NONE Steam 1 RUN: 0ee59581-d1ad-4109-a712-10f5aee527dc